{"text_format":"1","workbook":"xlsx","n_sheets":2,"sheets":["Feuille de saisie","Points"],"not_rendered":{"charts":0,"images":0,"macros":1,"external_links":0,"defined_names":30,"comments":0,"pivot_tables":0},"unopened":[],"bounds":{"document_bytes":16777216,"sheet_cells":100000,"rows_first":2000,"rows_last":500,"rows_between":2000,"halvings":0,"cell_chars":16384,"cell_head_chars":4096},"cells_cut":0,"cells_raw":0,"read":"whole","date_system":"1900"}

{"sheet":"Feuille de saisie","index":0,"n_rows":286,"n_cols":30,"rows_kept":286,"cut":false,"hidden":false,"merged":[[1,5,2,22],[8,26,9,26],[8,24,9,24],[8,25,9,25],[8,7,8,21],[8,5,9,5],[8,22,8,23],[8,1,10,1],[8,4,10,4],[8,3,10,3],[8,2,10,2],[5,5,5,22]]}
[]
[null,null,null,null,null,"Résultats des tests de condition physique - Rameurs J12 à J14"]
[]
[]
[]
[null,"LIBOURNE",null,null,null,"Club d'aviron "]
[]
[null,{"$f":"\"Nombre de sportifs : \"&COUNTA(totalsexe)&\" dont \"&COUNTIF(totalsexe,\"F\")&\" femmes et \"&COUNTIF(totalsexe,\"H\")&\" hommes\"","v":"Nombre de sportifs : 141 dont 66 femmes et 75 hommes"}]
[null,"NOM Prénom","Club","Catégorie","Sexe","Date de\nnaissance","Activité 1","Activité 2",null,null,null,null,null,null,null,null,null,null,null,null,null,null,"Activité 3",null,{"$f":"G9","v":"Activité 1"},{"$f":"H9","v":"Activité 2"},{"$f":"W9","v":"Activité 3"}]
[null,null,null,null,null,null,"Course à Pied","Atelier N°1","Atelier N°2","Atelier N°3","Atelier N°4","Atelier N°5","Atelier N°6","Atelier N°7","Atelier N°8","Atelier N°9","Atelier N°10","Atelier N°11","Atelier N°12","Atelier N°13","Atelier N°14","Atelier N°15","Ergo\nou\nCourse à pied + Ergo","cal"]
[null,null,null,null,null,2020,null,null,null,null,null,null,null,null,null,null,null,null,null,null,null,null,null,null,null,null,null,"Total","Nom Pénom"]
[null,"RUMAUX LILY","VILLENEUVE AV",{"$f":"IF(B12<>\"\",\"J\"&(($F$11)-(YEAR(F12)))&E12,\"\")","v":"J11F"},"F","2009-12-21",40,10,30,10,20,20,20,10,30,20,20,30,10,10,10,10,"Ergo",59,{"$f":"IF(G12>0,G12,\"\")","v":40},{"$f":"SUM(H12:V12)","v":260},{"$f":"IF(W12=\"Ergo\",X12/2,IF(W12=\"Course + Ergo\",X12,\"\"))","v":29.5},{"$f":"SUM(Y12:AA12)","v":329.5},{"$f":"IF(B12<>\"\",B12,\"\")","v":"RUMAUX LILY"},{"$f":"+C12","v":"VILLENEUVE AV"}]
[null,"RODRIGUEZ MORGANE","MARMANDE AV","J11F","F","2009-05-18",40,10,20,20,10,10,10,10,10,10,10,10,10,20,20,10,"Ergo",59,40,190,29.5,259.5,"RODRIGUEZ MORGANE","MARMANDE AV"]
[null,"DUSAN-JAUDEAU EMMA","LIBOURNE CN","J11F","F","2009-05-06",40,10,10,10,10,10,10,0,10,10,10,20,10,20,20,10,"Ergo",79,40,170,39.5,249.5,"DUSAN-JAUDEAU EMMA","LIBOURNE CN"]
[null,"RABBAH FATINE","BERGERAC SN","J11F","F","2009-08-27",40,10,20,20,10,0,10,0,30,20,20,0,10,10,10,0,"Ergo",62,40,170,31,241,"RABBAH FATINE","BERGERAC SN"]
[null,"AMOUROUX TIA","BERGERAC SN","J11F","F","2009-01-01",40,10,20,10,10,10,10,0,10,20,10,20,10,10,10,0,"Ergo",76,40,160,38,238,"AMOUROUX TIA","BERGERAC SN"]
[null,"KOUASSI NINA","VILLENEUVE AV","J10F","F","2010-02-28",40,10,10,0,10,10,10,10,10,10,10,0,10,10,10,0,"Ergo",63,40,120,31.5,191.5,"KOUASSI NINA","VILLENEUVE AV"]
[null,"RADI NAWEL","BERGERAC SN","J11F","F","2009-02-25",40,10,10,0,10,0,20,0,0,20,10,10,10,20,0,0,"Ergo",0,40,120,0,160,"RADI NAWEL","BERGERAC SN"]
[null,"GICQUEL YONA","VILLENEUVE AV","J10F","F","2010-04-29",40,10,10,10,10,0,10,0,0,10,10,0,0,10,10,0,"Ergo",53,40,90,26.5,156.5,"GICQUEL YONA","VILLENEUVE AV"]
[null,"DIONISIO FAGETTE EMMY","BERGERAC SN","J11F","F","2009-08-30",40,10,10,0,10,0,20,0,0,10,0,0,0,10,10,0,"Ergo",73,40,80,36.5,156.5,"DIONISIO FAGETTE EMMY","BERGERAC SN"]
[null,"LAURIOU EMMY","BERGERAC SN","J10F","F","2010-07-07",null,null,null,null,null,null,null,null,null,null,null,null,null,null,null,null,null,null,"",0,"",0,"LAURIOU EMMY","BERGERAC SN"]
[null,"VAUDOIS ALICIA","BERGERAC SN","J10F","F","2010-01-05",null,null,null,null,null,null,null,null,null,null,null,null,null,null,null,null,null,null,"",0,"",0,"VAUDOIS ALICIA","BERGERAC SN"]
[null,"ARTAMONOFF ETCHEVERRY NOE","MARMANDE AV","J10H","H","2010-01-05",null,null,null,null,null,null,null,null,null,null,null,null,null,null,null,null,null,null,"",0,"",0,"ARTAMONOFF ETCHEVERRY NOE","MARMANDE AV"]
[null,"BOURHIS LAYLA","VILLENEUVE AV","J11F","F","2009-12-14",null,null,null,null,null,null,null,null,null,null,null,null,null,null,null,null,null,null,"",0,"",0,"BOURHIS LAYLA","VILLENEUVE AV"]
[null,"HERNANDEZ LOUNA","LIBOURNE CN","J11F","F","2009-01-14",null,null,null,null,null,null,null,null,null,null,null,null,null,null,null,null,null,null,"",0,"",0,"HERNANDEZ LOUNA","LIBOURNE CN"]
[null,"MONTEIRO OLIVIA","MARMANDE AV","J11F","F","2009-10-12",null,null,null,null,null,null,null,null,null,null,null,null,null,null,null,null,null,null,"",0,"",0,"MONTEIRO OLIVIA","MARMANDE AV"]
[null,"ORTEGA ROSELYNE","SAINT SYLVESTRE CN","J11F","F","2009-08-12",null,null,null,null,null,null,null,null,null,null,null,null,null,null,null,null,null,null,"",0,"",0,"ORTEGA ROSELYNE","SAINT SYLVESTRE CN"]
[null,"TURCKI LEO","BERGERAC SN","J11H","H","2009-08-19",40,20,30,10,10,10,20,30,10,10,10,30,10,30,10,10,"Ergo",57,40,250,28.5,318.5,"TURCKI LEO","BERGERAC SN"]
[null,"ABBADIE MAXIME","LIBOURNE CN","J11H","H","2009-12-05",40,10,20,10,10,10,20,20,10,20,10,20,10,30,30,0,"Ergo",82,40,230,41,311,"ABBADIE MAXIME","LIBOURNE CN"]
[null,"HERITEAU NOE","MARMANDE AV","J11H","H","2009-02-17",40,10,30,20,10,10,10,0,10,20,0,20,10,20,30,0,"Ergo",81,40,200,40.5,280.5,"HERITEAU NOE","MARMANDE AV"]
[null,"ROUSSELY JOHAN","BERGERAC SN","J11H","H","2009-02-02",40,10,20,10,10,10,20,0,10,20,10,30,10,10,10,10,"Ergo",68,40,190,34,264,"ROUSSELY JOHAN","BERGERAC SN"]
[null,"PAILLAS CORENTIN","VILLENEUVE AV","J11H","H","2009-05-27",40,10,20,10,10,10,10,10,10,20,10,20,10,10,10,0,"Ergo",94,40,170,47,257,"PAILLAS CORENTIN","VILLENEUVE AV"]
[null,"TEURLEY JUSTEEN","LIBOURNE CN","J11H","H","2009-04-08",null,null,null,null,null,null,null,null,null,null,null,null,null,null,null,null,null,null,"",0,"",0,"TEURLEY JUSTEEN","LIBOURNE CN"]
[null,"CESBRON KRISTAL","BERGERAC SN","J12F","F","2008-03-07",40,10,30,20,10,10,20,30,20,20,20,20,10,20,10,10,"Ergo",74,40,260,37,337,"CESBRON KRISTAL","BERGERAC SN"]
[null,"TURCKI CELIA","BERGERAC SN","J12F","F","2008-01-09",40,10,20,10,10,20,20,0,20,20,20,30,10,30,10,0,"Ergo",84,40,230,42,312,"TURCKI CELIA","BERGERAC SN"]
[null,"PERVIEUX LYDIE","BERGERAC SN","J12F","F","2008-02-19",40,10,20,10,10,10,20,0,20,20,10,30,10,20,20,0,"Ergo",108,40,210,54,304,"PERVIEUX LYDIE","BERGERAC SN"]
[null,"SORBIER LEA","BERGERAC SN","J12F","F","2008-03-21",40,10,20,10,10,10,10,30,20,20,10,20,10,10,10,10,"Ergo",89,40,210,44.5,294.5,"SORBIER LEA","BERGERAC SN"]
[null,"EL KARMA SAFFIYA","BERGERAC SN","J12F","F","2008-04-04",40,10,10,10,10,10,20,10,10,20,10,20,10,20,10,0,"Ergo",61,40,180,30.5,250.5,"EL KARMA SAFFIYA","BERGERAC SN"]
[null,"SEDENSKI RACHEL","BERGERAC SN","J12F","F","2008-08-26",40,10,20,10,10,10,20,0,10,20,10,10,10,20,10,0,"Ergo",78,40,170,39,249,"SEDENSKI RACHEL","BERGERAC SN"]
[null,"BENETON TESS","SAINT SYLVESTRE CN","J12F","F","2008-03-11",40,10,20,10,10,10,10,20,10,10,10,10,10,10,10,0,"Ergo",73,40,160,36.5,236.5,"BENETON TESS","SAINT SYLVESTRE CN"]
[null,"LHUMEAU LOUANN","BERGERAC SN","J12F","F","2008-04-17",40,10,10,10,10,10,10,0,0,20,10,10,10,10,10,0,"Ergo",73,40,130,36.5,206.5,"LHUMEAU LOUANN","BERGERAC SN"]
[null,"MASSONIE HECTOR","LIBOURNE CN","J12H","H","2008-02-21",40,20,30,10,30,20,20,30,10,30,20,20,10,20,30,10,"Ergo",94,40,310,47,397,"MASSONIE HECTOR","LIBOURNE CN"]
[null,"LABOURE LUCIEN","BORDEAUX EN","J12H","H","2008-06-10",40,20,30,10,20,20,10,10,20,20,20,20,10,30,30,0,"Ergo",84,40,270,42,352,"LABOURE LUCIEN","BORDEAUX EN"]
[null,"HIBON TRISTAN","LIBOURNE CN",{"$f":"IF(B44<>\"\",\"J\"&(($F$11)-(YEAR(F44)))&E44,\"\")","v":"J12H"},"H","2008-09-22",40,20,30,20,0,10,20,0,20,30,20,30,10,30,30,10,"Course + Ergo",29,{"$f":"IF(G44>0,G44,\"\")","v":40},{"$f":"SUM(H44:V44)","v":280},{"$f":"IF(W44=\"Ergo\",X44/2,IF(W44=\"Course + Ergo\",X44,\"\"))","v":29},{"$f":"SUM(Y44:AA44)","v":349},{"$f":"IF(B44<>\"\",B44,\"\")","v":"HIBON TRISTAN"},{"$f":"+C44","v":"LIBOURNE CN"}]
[null,"CREVEAUX DARMANTE JON","BORDEAUX EN","J12H","H","2008-08-20",40,30,30,20,20,10,10,10,10,10,10,10,10,30,10,10,"Ergo",60,40,230,30,300,"CREVEAUX DARMANTE JON","BORDEAUX EN"]
[null,"NAISSANT GIOVANNI","BERGERAC SN","J12H","H","2008-02-05",40,10,30,10,10,10,10,0,20,30,10,30,10,10,10,10,"Ergo",97,40,210,48.5,298.5,"NAISSANT GIOVANNI","BERGERAC SN"]
[null,"BEZIAU LOIC","BORDEAUX EN","J12H","H","2008-10-17",40,10,30,10,20,10,30,20,10,10,10,10,10,30,10,0,"Ergo",68,40,220,34,294,"BEZIAU LOIC","BORDEAUX EN"]
[null,"SOUYRIS THYMOTEY","SAINT SYLVESTRE CN","J12H","H","2008-11-01",40,10,10,10,20,10,20,20,20,10,10,20,0,10,10,10,"Ergo",75,40,190,37.5,267.5,"SOUYRIS THYMOTEY","SAINT SYLVESTRE CN"]
[null,"VITRAC LUCA","BERGERAC SN","J12H","H","2008-12-16",40,10,20,10,10,10,20,0,10,20,10,30,10,10,10,0,"Ergo",81,40,180,40.5,260.5,"VITRAC LUCA","BERGERAC SN"]
[null,"RABBAH MOHAMEDYASSINE","BERGERAC SN","J12H","H","2008-03-22",40,10,30,10,10,0,20,0,10,10,10,10,10,10,10,0,"Ergo",68,40,150,34,224,"RABBAH MOHAMEDYASSINE","BERGERAC SN"]
[null,"GARCIA PABLO","BORDEAUX EN","J12H","H","2008-01-05",40,10,20,10,10,0,10,10,0,10,10,10,0,10,10,0,"Ergo",77,40,120,38.5,198.5,"GARCIA PABLO","BORDEAUX EN"]
[null,"LAGAUZERE NATHAN","MARMANDE AV","J12H","H","2008-12-18",40,10,10,0,10,0,0,0,0,10,0,10,0,10,10,0,"Ergo",63,40,70,31.5,141.5,"LAGAUZERE NATHAN","MARMANDE AV"]
[null,"ERPELDING ADAM","MARMANDE AV","J12H","H","2008-07-07",null,null,null,null,null,null,null,null,null,null,null,null,null,null,null,null,null,null,"",0,"",0,"ERPELDING ADAM","MARMANDE AV"]
[null,"HABIBI MEHDY","BERGERAC SN","J12H","H","2008-10-11",null,null,null,null,null,null,null,null,null,null,null,null,null,null,null,null,null,null,"",0,"",0,"HABIBI MEHDY","BERGERAC SN"]
[null,"VERTUOL CALIXTE","MARMANDE AV","J12H","H","2008-12-18",null,null,null,null,null,null,null,null,null,null,null,null,null,null,null,null,null,null,"",0,"",0,"VERTUOL CALIXTE","MARMANDE AV"]
[null,"VIDEAU MARC","BERGERAC SN","J12H","H","2008-04-23",null,null,null,null,null,null,null,null,null,null,null,null,null,null,null,null,null,null,"",0,"",0,"VIDEAU MARC","BERGERAC SN"]
[null,"DELBOS LANA","BERGERAC SN","J13F","F","2007-05-05",40,20,30,10,20,30,20,20,30,20,20,30,10,30,30,10,"Ergo",114,40,330,57,427,"DELBOS LANA","BERGERAC SN"]
[null,"GALISSAIRES CHARLOTTE","MARMANDE AV","J13F","F","2007-03-28",40,20,30,20,10,20,30,30,0,20,30,20,10,20,30,10,"Ergo",116,40,300,58,398,"GALISSAIRES CHARLOTTE","MARMANDE AV"]
[null,"BUGEAUD HELOISE","BORDEAUX EN","J13F","F","2007-07-11",40,20,30,20,20,10,10,20,20,20,20,30,10,30,30,20,"Ergo",93,40,310,46.5,396.5,"BUGEAUD HELOISE","BORDEAUX EN"]
[null,"CORROCHER JANYCE","SAINT SYLVESTRE CN","J13F","F","2007-10-13",40,20,20,20,20,20,20,20,20,20,20,20,10,20,20,10,"Ergo",91,40,280,45.5,365.5,"CORROCHER JANYCE","SAINT SYLVESTRE CN"]
[null,"ISSEN JULIETTE","LIBOURNE CN","J13F","F","2007-08-22",40,10,30,20,20,20,20,30,20,20,10,30,10,30,10,0,"Ergo",91,40,280,45.5,365.5,"ISSEN JULIETTE","LIBOURNE CN"]
[null,"ROCHERJUGE BAIA","VILLENEUVE AV","J13F","F","2007-06-26",40,10,30,10,10,20,20,20,20,20,20,30,10,10,20,10,"Ergo",94,40,260,47,347,"ROCHERJUGE BAIA","VILLENEUVE AV"]
[null,"MARTIN HAUTEVILLE CAPUCINE","VILLENEUVE AV","J13F","F","2007-01-25",40,10,30,10,10,10,20,20,20,20,20,30,10,10,30,0,"Ergo",97,40,250,48.5,338.5,"MARTIN HAUTEVILLE CAPUCINE","VILLENEUVE AV"]
[null,"BOUYAHI LYLIA","VILLENEUVE AV","J13F","F","2007-07-15",40,10,30,10,10,20,20,20,20,20,10,30,10,10,20,0,"Ergo",107,40,240,53.5,333.5,"BOUYAHI LYLIA","VILLENEUVE AV"]
[null,"HECHELSKI EILEEN","SAINT SYLVESTRE CN","J13F","F","2007-09-18",40,10,20,10,10,20,30,20,20,20,10,10,10,10,10,0,"Ergo",84,40,210,42,292,"HECHELSKI EILEEN","SAINT SYLVESTRE CN"]
[null,"ATZORI MARGOT","BERGERAC SN","J13F","F","2007-02-15",40,10,20,10,20,20,20,20,0,20,10,0,10,0,30,0,"Ergo",91,40,190,45.5,275.5,"ATZORI MARGOT","BERGERAC SN"]
[null,"RAFFY SUERES LALIE","VILLENEUVE AV","J13F","F","2007-10-04",40,10,30,10,10,10,10,10,20,10,10,20,10,10,20,0,"Ergo",79,40,190,39.5,269.5,"RAFFY SUERES LALIE","VILLENEUVE AV"]
[null,"DIET LEA","LIBOURNE CN","J13F","F","2007-02-09",40,10,20,10,10,10,10,0,0,20,10,20,0,30,20,0,"Ergo",82,40,170,41,251,"DIET LEA","LIBOURNE CN"]
[null,"LAVIELLE FLORENTINE","BORDEAUX EN","J13F","F","2007-01-05",40,10,20,10,10,10,20,20,10,0,10,10,10,10,10,0,"Ergo",91,40,160,45.5,245.5,"LAVIELLE FLORENTINE","BORDEAUX EN"]
[null,"ARNAUD EMMA","LIBOURNE CN","J13F","F","2007-08-21",null,null,null,null,null,null,null,null,null,null,null,null,null,null,null,null,null,null,"",0,"",0,"ARNAUD EMMA","LIBOURNE CN"]
[null,"AUGUSTE ANAELLE","BERGERAC SN","J13F","F","2007-12-07",null,null,null,null,null,null,null,null,null,null,null,null,null,null,null,null,null,null,"",0,"",0,"AUGUSTE ANAELLE","BERGERAC SN"]
[null,"BAPTISTA RUIZ CELENE","LIBOURNE CN","J13F","F","2007-04-04",null,null,null,null,null,null,null,null,null,null,null,null,null,null,null,null,null,null,"",0,"",0,"BAPTISTA RUIZ CELENE","LIBOURNE CN"]
[null,"DELRIEU CLEMENCE","VILLENEUVE AV","J13F","F","2007-10-28",null,null,null,null,null,null,null,null,null,null,null,null,null,null,null,null,null,null,"",0,"",0,"DELRIEU CLEMENCE","VILLENEUVE AV"]
[null,"PEBAYLE AXEL","BERGERAC SN","J13H","H","2007-03-22",40,20,30,30,30,30,30,30,30,30,30,30,10,30,30,0,"Ergo",125,40,390,62.5,492.5,"PEBAYLE AXEL","BERGERAC SN"]
[null,"PARUIT LEOPOLD","BORDEAUX EN","J13H","H","2007-02-10",40,30,30,30,30,20,30,30,20,30,30,30,10,30,30,0,"Course + Ergo",45,40,380,45,465,"PARUIT LEOPOLD","BORDEAUX EN"]
[null,"VOGELEER MAX","MARMANDE AV",{"$f":"IF(B76<>\"\",\"J\"&(($F$11)-(YEAR(F76)))&E76,\"\")","v":"J13H"},"H","2007-04-28",40,30,30,20,20,20,20,30,30,30,30,30,10,30,30,10,"Ergo",94,{"$f":"IF(G76>0,G76,\"\")","v":40},{"$f":"SUM(H76:V76)","v":370},{"$f":"IF(W76=\"Ergo\",X76/2,IF(W76=\"Course + Ergo\",X76,\"\"))","v":47},{"$f":"SUM(Y76:AA76)","v":457},{"$f":"IF(B76<>\"\",B76,\"\")","v":"VOGELEER MAX"},{"$f":"+C76","v":"MARMANDE AV"}]
[null,"RIEU VALMY","BORDEAUX EN","J13H","H","2007-03-15",40,30,30,20,30,20,20,20,20,30,30,20,10,30,20,10,"Ergo",115,40,340,57.5,437.5,"RIEU VALMY","BORDEAUX EN"]
[null,"BONTE ELIOTT","MARMANDE AV","J13H","H","2007-06-22",40,20,20,20,10,20,20,30,30,20,20,20,10,30,30,10,"Ergo",88,40,310,44,394,"BONTE ELIOTT","MARMANDE AV"]
[null,"ZACCHIA NOLAN","SAINT SYLVESTRE CN","J13H","H","2007-04-09",40,20,20,20,20,20,20,20,30,20,20,30,10,10,30,10,"Ergo",98,40,300,49,389,"ZACCHIA NOLAN","SAINT SYLVESTRE CN"]
[null,"ALGISI IMANOL","VILLENEUVE AV","J13H","H","2007-05-30",40,20,30,10,20,20,20,20,20,20,30,30,10,20,20,10,"Ergo",95,40,300,47.5,387.5,"ALGISI IMANOL","VILLENEUVE AV"]
[null,"RIEUBLANC EVAN","LIBOURNE CN","J13H","H","2007-01-24",40,10,30,20,10,20,20,30,0,20,10,30,10,30,30,0,"Ergo",108,40,270,54,364,"RIEUBLANC EVAN","LIBOURNE CN"]
[null,"ROUX ADRIEN","LIBOURNE CN","J13H","H","2007-12-31",40,10,20,30,20,10,20,30,0,20,20,30,0,30,30,0,"Ergo",92,40,270,46,356,"ROUX ADRIEN","LIBOURNE CN"]
[null,"LAUTRETE ANTOINE","LIBOURNE CN","J13H","H","2007-04-26",40,10,20,20,10,20,20,0,20,20,20,20,10,30,30,10,"Ergo",82,40,260,41,341,"LAUTRETE ANTOINE","LIBOURNE CN"]
[null,"BIHAN ELIAS","MARMANDE AV","J13H","H","2007-04-05",40,10,20,20,10,10,10,20,20,20,20,20,10,20,30,10,"Ergo",82,40,250,41,331,"BIHAN ELIAS","MARMANDE AV"]
[null,"VITRAC NATHAN","BERGERAC SN","J13H","H","2007-12-12",40,20,20,20,10,0,20,20,20,20,20,20,10,20,20,0,"Ergo",101,40,240,50.5,330.5,"VITRAC NATHAN","BERGERAC SN"]
[null,"MAYOR ENZO","VILLENEUVE AV","J13H","H","2007-06-13",0,20,20,10,20,20,20,20,20,20,20,30,10,30,10,10,"Ergo",93,"",280,46.5,326.5,"MAYOR ENZO","VILLENEUVE AV"]
[null,"SPECOGNA LOUIS","MARMANDE AV","J13H","H","2007-12-22",40,10,20,20,10,10,20,20,20,20,20,10,10,20,30,0,"Ergo",88,40,240,44,324,"SPECOGNA LOUIS","MARMANDE AV"]
[null,"BATLO ARTHUR","LIBOURNE CN","J13H","H","2007-11-07",40,10,30,10,10,10,10,0,20,20,10,20,10,30,30,10,"Ergo",95,40,230,47.5,317.5,"BATLO ARTHUR","LIBOURNE CN"]
[null,"MESSAUSSIER PAULIN","SAINT SYLVESTRE CN","J13H","H","2007-05-17",40,10,20,10,10,20,10,10,30,10,10,20,10,10,20,10,"Ergo",78,40,210,39,289,"MESSAUSSIER PAULIN","SAINT SYLVESTRE CN"]
[null,"FAURE MAX","BORDEAUX EN","J13H","H","2007-02-14",40,10,30,10,10,0,10,20,10,10,10,10,10,20,10,0,"Ergo",77,40,170,38.5,248.5,"FAURE MAX","BORDEAUX EN"]
[null,"BOUZIANE WALID","BERGERAC SN","J13H","H","2007-06-26",40,10,10,10,10,10,10,10,10,10,10,10,10,20,20,0,"Ergo",82,40,160,41,241,"BOUZIANE WALID","BERGERAC SN"]
[null,"CHAULET TOM","BORDEAUX EN","J13H","H","2007-02-13",40,10,10,10,20,0,10,20,0,10,10,0,0,20,10,0,"Ergo",104,40,130,52,222,"CHAULET TOM","BORDEAUX EN"]
[null,"LEYRIS JEAN CHARLES","MARMANDE AV","J13H","H","2007-05-21",40,10,10,10,10,0,10,20,10,10,10,0,0,10,30,0,"Ergo",71,40,140,35.5,215.5,"LEYRIS JEAN CHARLES","MARMANDE AV"]
[null,"LE FRANC NATHAN","BORDEAUX EN","J13H","H","2007-02-17",40,10,20,10,10,10,10,20,10,10,10,10,0,10,10,0,"Course + Ergo",4,40,150,4,194,"LE FRANC NATHAN","BORDEAUX EN"]
[null,"DUTRIEZ STEVEN","BERGERAC SN","J13H","H","2007-06-05",null,null,null,null,null,null,null,null,null,null,null,null,null,null,null,null,null,null,"",0,"",0,"DUTRIEZ STEVEN","BERGERAC SN"]
[null,"GILLERON TIAGO","VILLENEUVE AV","J13H","H","2007-01-29",null,null,null,null,null,null,null,null,null,null,null,null,null,null,null,null,null,null,"",0,"",0,"GILLERON TIAGO","VILLENEUVE AV"]
[null,"LABASSE MATHEO","LIBOURNE CN","J13H","H","2007-02-16",null,null,null,null,null,null,null,null,null,null,null,null,null,null,null,null,null,null,"",0,"",0,"LABASSE MATHEO","LIBOURNE CN"]
[null,"VIDEAU LOUIS","BERGERAC SN","J13H","H","2007-01-11",null,null,null,null,null,null,null,null,null,null,null,null,null,null,null,null,null,null,"",0,"",0,"VIDEAU LOUIS","BERGERAC SN"]
[null,"DINU CELIA","LIBOURNE CN","J14F","F","2006-03-23",40,20,30,30,20,30,30,30,30,30,20,30,0,30,30,10,"Ergo",112,40,370,56,466,"DINU CELIA","LIBOURNE CN"]
[null,"JARJANETTE CHLOE","BERGERAC SN","J14F","F","2006-05-18",40,10,30,20,20,30,30,30,30,20,30,30,10,30,30,10,"Ergo",130,40,360,65,465,"JARJANETTE CHLOE","BERGERAC SN"]
[null,"BRY EMMIE","BERGERAC SN","J14F","F","2006-03-08",40,10,30,20,20,30,30,30,30,20,30,30,10,30,30,10,"Ergo",129,40,360,64.5,464.5,"BRY EMMIE","BERGERAC SN"]
[null,"BRY CELIA","BERGERAC SN","J14F","F","2006-03-08",40,10,30,20,20,30,30,30,30,20,30,30,10,30,30,10,"Ergo",126,40,360,63,463,"BRY CELIA","BERGERAC SN"]
[null,"FRANCONIE MAELYS","VILLENEUVE AV","J14F","F","2006-05-15",40,10,30,20,30,30,30,30,30,20,20,30,10,30,30,10,"Ergo",106,40,360,53,453,"FRANCONIE MAELYS","VILLENEUVE AV"]
[null,"JANKOWSKI CAROLINE","LIBOURNE CN","J14F","F","2006-05-23",40,20,30,30,30,20,30,30,20,30,10,30,20,30,30,0,"Ergo",105,40,360,52.5,452.5,"JANKOWSKI CAROLINE","LIBOURNE CN"]
[null,"RICARDO MORGAN","VILLENEUVE AV","J14F","F","2006-06-16",40,20,30,10,30,20,20,30,30,30,30,30,10,20,30,10,"Ergo",109,40,350,54.5,444.5,"RICARDO MORGAN","VILLENEUVE AV"]
[null,"CHATELIER BLANCHE","BORDEAUX EN","J14F","F","2006-01-06",40,20,30,30,20,20,20,20,20,30,20,30,10,30,30,10,"Ergo",95,40,340,47.5,427.5,"CHATELIER BLANCHE","BORDEAUX EN"]
[null,"SAMSON JEANNE","BORDEAUX EN","J14F","F","2006-04-15",40,20,30,30,20,20,20,30,30,20,10,30,10,20,30,10,"Ergo",111,40,330,55.5,425.5,"SAMSON JEANNE","BORDEAUX EN"]
[null,"CARPENE MARIE-ANGE","MARMANDE AV",{"$f":"IF(B108<>\"\",\"J\"&(($F$11)-(YEAR(F108)))&E108,\"\")","v":"J14F"},"F","2006-04-07",40,10,30,20,10,30,20,30,30,20,10,30,10,30,30,10,"Ergo",127,{"$f":"IF(G108>0,G108,\"\")","v":40},{"$f":"SUM(H108:V108)","v":320},{"$f":"IF(W108=\"Ergo\",X108/2,IF(W108=\"Course + Ergo\",X108,\"\"))","v":63.5},{"$f":"SUM(Y108:AA108)","v":423.5},{"$f":"IF(B108<>\"\",B108,\"\")","v":"CARPENE MARIE-ANGE"},{"$f":"+C108","v":"MARMANDE AV"}]
[null,"LANOS JULIETTE","BORDEAUX EN","J14F","F","2006-10-26",40,20,30,20,30,10,20,20,20,20,20,20,10,20,30,10,"Ergo",108,40,300,54,394,"LANOS JULIETTE","BORDEAUX EN"]
[null,"TOURNEZY NEHIKA","VILLENEUVE AV","J14F","F","2006-08-12",40,10,30,10,30,20,20,30,20,20,20,30,10,20,30,0,"Ergo",106,40,300,53,393,"TOURNEZY NEHIKA","VILLENEUVE AV"]
[null,"VERDIERE CASSIOPEE","BORDEAUX EN","J14F","F","2006-08-01",40,10,30,20,20,10,20,20,20,20,10,20,10,30,30,20,"Ergo",114,40,290,57,387,"VERDIERE CASSIOPEE","BORDEAUX EN"]
[null,"TAUZIN ROMANE","MARMANDE AV","J14F","F","2006-09-24",40,10,30,20,10,20,20,30,20,20,10,20,10,30,30,0,"Ergo",107,40,280,53.5,373.5,"TAUZIN ROMANE","MARMANDE AV"]
[null,"GALLAND HELINE","VILLENEUVE AV","J14F","F","2006-04-26",40,10,30,10,10,10,20,30,30,20,20,30,10,10,20,10,"Ergo",111,40,270,55.5,365.5,"GALLAND HELINE","VILLENEUVE AV"]
[null,"DEMAIZIERE ELISE","MARMANDE AV","J14F","F","2006-12-25",40,10,30,20,10,0,10,20,20,20,20,20,10,20,30,0,"Ergo",86,40,240,43,323,"DEMAIZIERE ELISE","MARMANDE AV"]
[null,"GONZALEZ MAIA","VILLENEUVE AV","J14F","F","2006-07-02",40,10,30,10,10,0,20,20,20,20,10,20,10,10,20,10,"Ergo",98,40,220,49,309,"GONZALEZ MAIA","VILLENEUVE AV"]
[null,"DUPUY MARINE","LIBOURNE CN","J14F","F","2006-04-15",40,10,30,10,10,10,20,30,10,10,10,30,10,10,10,0,"Ergo",83,40,210,41.5,291.5,"DUPUY MARINE","LIBOURNE CN"]
[null,"DANGUIR LILA -ANAYA","MARMANDE AV","J14F","F","2006-12-26",40,10,20,20,10,0,20,0,10,20,20,10,10,20,30,0,"Ergo",95,40,200,47.5,287.5,"DANGUIR LILA -ANAYA","MARMANDE AV"]
[null,"LIENERE LILOU","BORDEAUX EN","J14F","F","2006-06-02",40,10,20,10,10,10,20,20,20,10,10,10,10,10,30,0,"Ergo",90,40,200,45,285,"LIENERE LILOU","BORDEAUX EN"]
[null,"LACUEILLE ZOE","LIBOURNE CN","J14F","F","2006-02-17",40,10,0,0,10,0,30,30,0,10,10,0,10,20,0,0,"Ergo",117,40,130,58.5,228.5,"LACUEILLE ZOE","LIBOURNE CN"]
[null,"GAUDRY SARAH","VILLENEUVE AV","J14F","F","2006-05-25",40,10,20,10,10,0,10,10,10,10,10,10,10,10,10,0,"Ergo",84,40,140,42,222,"GAUDRY SARAH","VILLENEUVE AV"]
[null,"KOZLOWSKA OLIWIA","MARMANDE AV","J14F","F","2006-03-26",40,10,30,20,10,20,20,0,0,0,0,0,0,0,0,0,"Ergo",0,40,110,0,150,"KOZLOWSKA OLIWIA","MARMANDE AV"]
[null,"BATOGE CHLOE","BORDEAUX EN","J14F","F","2006-01-20",null,null,null,null,null,null,null,null,null,null,null,null,null,null,null,null,null,null,"",0,"",0,"BATOGE CHLOE","BORDEAUX EN"]
[null,"CHAMINADE CHLOE","LIBOURNE CN","J14F","F","2006-03-29",null,null,null,null,null,null,null,null,null,null,null,null,null,null,null,null,"Ergo",null,"",0,0,0,"CHAMINADE CHLOE","LIBOURNE CN"]
[null,"HOEKSTRA MAYRA","LIBOURNE CN","J14F","F","2006-08-24",null,null,null,null,null,null,null,null,null,null,null,null,null,null,null,null,"Ergo",null,"",0,0,0,"HOEKSTRA MAYRA","LIBOURNE CN"]
[null,"GOURC MERLIN","BORDEAUX EN","J14H","H","2006-05-14",40,30,30,30,30,30,30,30,30,30,30,30,20,30,30,10,"Ergo",148,40,420,74,534,"GOURC MERLIN","BORDEAUX EN"]
[null,"HAICAGUERRE GABRIEL","LIBOURNE CN","J14H","H","2006-11-24",40,30,30,30,30,30,30,30,30,30,30,30,30,30,30,10,"Ergo",127,40,430,63.5,533.5,"HAICAGUERRE GABRIEL","LIBOURNE CN"]
[null,"VERGNE CLEMENT","LIBOURNE CN","J14H","H","2006-05-08",40,30,30,30,30,30,30,30,30,30,30,30,10,30,30,10,"Ergo",149,40,410,74.5,524.5,"VERGNE CLEMENT","LIBOURNE CN"]
[null,"CAZEAU JUSTIN","SAINT SYLVESTRE CN","J14H","H","2006-06-02",40,30,30,30,30,30,30,30,30,30,30,30,10,30,30,10,"Ergo",137,40,410,68.5,518.5,"CAZEAU JUSTIN","SAINT SYLVESTRE CN"]
[null,"MERCADIER ALBAN","VILLENEUVE AV","J14H","H","2006-09-06",40,30,30,20,30,30,30,30,30,30,30,30,10,30,30,10,"Ergo",151,40,400,75.5,515.5,"MERCADIER ALBAN","VILLENEUVE AV"]
[null,"COLDEBOEUF LUIGY","BERGERAC SN","J14H","H","2006-03-16",40,30,30,30,30,30,30,30,30,30,30,30,10,30,30,0,"Ergo",147,40,400,73.5,513.5,"COLDEBOEUF LUIGY","BERGERAC SN"]
[null,"ALVES MATHIEU","MARMANDE AV","J14H","H","2006-02-27",40,30,30,30,30,30,30,30,30,30,30,30,20,30,30,0,"Ergo",127,40,410,63.5,513.5,"ALVES MATHIEU","MARMANDE AV"]
[null,"LANDI RUSLANS","BORDEAUX EN","J14H","H","2006-02-05",40,30,30,30,30,20,20,30,30,20,30,30,20,30,20,10,"Ergo",103,40,380,51.5,471.5,"LANDI RUSLANS","BORDEAUX EN"]
[null,"SARRAUTE BAPTISTE","BORDEAUX EN","J14H","H","2006-05-03",40,30,30,20,20,20,30,30,30,30,30,30,10,30,20,10,"Ergo",115,40,370,57.5,467.5,"SARRAUTE BAPTISTE","BORDEAUX EN"]
[null,"MARTIN TOM","BERGERAC SN","J14H","H","2006-08-01",40,20,30,30,30,30,20,30,30,20,20,30,10,30,30,0,"Ergo",123,40,360,61.5,461.5,"MARTIN TOM","BERGERAC SN"]
[null,"CALLEGARIN MAORO","LIBOURNE CN","J14H","H","2006-11-30",40,20,30,30,20,30,30,30,20,30,30,30,10,30,30,0,"Ergo",95,40,370,47.5,457.5,"CALLEGARIN MAORO","LIBOURNE CN"]
[null,"HUSSON GAUTHIER","VILLENEUVE AV","J14H","H","2006-02-18",40,20,30,20,20,30,30,30,30,30,30,30,10,20,30,10,"Ergo",73,40,370,36.5,446.5,"HUSSON GAUTHIER","VILLENEUVE AV"]
[null,"NAVARRO WILLIAM","BERGERAC SN","J14H","H","2006-06-02",40,20,30,30,20,20,30,30,30,20,20,30,10,20,30,10,"Ergo",110,40,350,55,445,"NAVARRO WILLIAM","BERGERAC SN"]
[null,"BONTE GABIN","MARMANDE AV","J14H","H","2006-05-15",40,20,30,30,20,30,20,30,30,20,20,20,10,20,30,10,"Ergo",103,40,340,51.5,431.5,"BONTE GABIN","MARMANDE AV"]
[null,"MILLOT JULES","BERGERAC SN","J14H","H","2006-09-13",40,10,30,30,20,30,20,20,30,20,20,30,10,20,30,0,"Ergo",109,40,320,54.5,414.5,"MILLOT JULES","BERGERAC SN"]
[null,"BORSATO TOM","MARMANDE AV",{"$f":"IF(B140<>\"\",\"J\"&(($F$11)-(YEAR(F140)))&E140,\"\")","v":"J14H"},"H","2006-05-10",40,20,30,20,10,30,20,20,30,20,30,20,10,20,30,10,"Ergo",96,{"$f":"IF(G140>0,G140,\"\")","v":40},{"$f":"SUM(H140:V140)","v":320},{"$f":"IF(W140=\"Ergo\",X140/2,IF(W140=\"Course + Ergo\",X140,\"\"))","v":48},{"$f":"SUM(Y140:AA140)","v":408},{"$f":"IF(B140<>\"\",B140,\"\")","v":"BORSATO TOM"},{"$f":"+C140","v":"MARMANDE AV"}]
[null,"LEWIN COLLIN","BERGERAC SN","J14H","H","2006-06-03",40,20,30,20,20,10,20,20,30,20,20,20,10,30,30,10,"Ergo",100,40,310,50,400,"LEWIN COLLIN","BERGERAC SN"]
[null,"LAPARRE MAEL","VILLENEUVE AV","J14H","H","2006-10-07",40,20,20,10,20,20,20,20,20,20,30,20,10,30,20,10,"Ergo",97,40,290,48.5,378.5,"LAPARRE MAEL","VILLENEUVE AV"]
[null,"CESBRON LOSON","BERGERAC SN","J14H","H","2006-08-31",40,20,20,30,20,20,20,20,20,20,20,20,10,20,20,0,"Ergo",108,40,280,54,374,"CESBRON LOSON","BERGERAC SN"]
[null,"JACQUES REMI","LIBOURNE CN","J14H","H","2006-06-26",40,10,30,20,10,10,30,30,20,20,20,30,10,10,30,0,"Ergo",107,40,280,53.5,373.5,"JACQUES REMI","LIBOURNE CN"]
[null,"GLENADEL DYLAN","SAINT SYLVESTRE CN","J14H","H","2006-06-16",40,20,20,20,20,20,30,30,20,10,10,20,10,10,30,10,"Ergo",94,40,280,47,367,"GLENADEL DYLAN","SAINT SYLVESTRE CN"]
[null,"KENNOUCH HATIM","VILLENEUVE AV","J14H","H","2006-09-26",40,20,20,10,10,30,20,20,30,20,10,20,10,20,10,10,"Ergo",90,40,260,45,345,"KENNOUCH HATIM","VILLENEUVE AV"]
[null,"THEPAULT ANCILLON MARIN","BORDEAUX EN","J14H","H","2006-05-04",40,10,30,20,20,10,20,30,20,10,20,10,10,20,10,0,"Ergo",89,40,240,44.5,324.5,"THEPAULT ANCILLON MARIN","BORDEAUX EN"]
[null,"PAUTHIER TONY","MARMANDE AV","J14H","H","2006-12-04",40,20,20,20,10,0,20,20,10,20,20,20,10,20,30,10,"Ergo",69,40,250,34.5,324.5,"PAUTHIER TONY","MARMANDE AV"]
[null,"FERIOT LUCAS","BORDEAUX EN","J14H","H","2006-09-20",40,10,20,20,10,10,20,20,10,20,10,20,10,20,10,0,"Ergo",114,40,210,57,307,"FERIOT LUCAS","BORDEAUX EN"]
[null,"BARDINET HENRI","LIBOURNE CN","J14H","H","2006-03-15",null,null,null,null,null,null,null,null,null,null,null,null,null,null,null,null,"Ergo",null,"",0,0,0,"BARDINET HENRI","LIBOURNE CN"]
[null,"BULTEAU ANTOINE","LIBOURNE CN","J14H","H","2006-06-21",null,null,null,null,null,null,null,null,null,null,null,null,null,null,null,null,"Ergo",null,"",0,0,0,"BULTEAU ANTOINE","LIBOURNE CN"]
[null,"NICOL CORENTIN","BORDEAUX EN","J14H","H","2006-05-13",null,null,null,null,null,null,null,null,null,null,null,null,null,null,null,null,"Ergo",null,"",0,0,0,"NICOL CORENTIN","BORDEAUX EN"]
[null,null,null,{"$f":"IF(B153<>\"\",\"J\"&(($F$11)-(YEAR(F153)))&E153,\"\")","v":""},null,null,null,null,null,null,null,null,null,null,null,null,null,null,null,null,null,null,null,null,{"$f":"IF(G153>0,G153,\"\")","v":""},{"$f":"IF(H153<>\"\",IF(ISERROR(IF(E153=\"F\",VLOOKUP(H153,foulees_f,3,TRUE),VLOOKUP(H153,foulees_m,2,TRUE))),0,IF(E153=\"F\",VLOOKUP(H153,foulees_f,3,TRUE),VLOOKUP(H153,foulees_m,2,TRUE))),\"\")","v":""},{"$f":"IF(W153=\"Ergo\",X153/2,IF(W153=\"Course + Ergo\",X153,\"\"))","v":""},{"$f":"SUM(Y153:AA153)","v":0},{"$f":"IF(B153<>\"\",B153,\"\")","v":""}]
[null,null,null,"",null,null,null,null,null,null,null,null,null,null,null,null,null,null,null,null,null,null,null,null,"","","",0,""]
[null,null,null,"",null,null,null,null,null,null,null,null,null,null,null,null,null,null,null,null,null,null,null,null,"","","",0,""]
[null,null,null,"",null,null,null,null,null,null,null,null,null,null,null,null,null,null,null,null,null,null,null,null,"","","",0,""]
[null,null,null,"",null,null,null,null,null,null,null,null,null,null,null,null,null,null,null,null,null,null,null,null,"","","",0,""]
[null,null,null,"",null,null,null,null,null,null,null,null,null,null,null,null,null,null,null,null,null,null,null,null,"","","",0,""]
[null,null,null,"",null,null,null,null,null,null,null,null,null,null,null,null,null,null,null,null,null,null,null,null,"","","",0,""]
[null,null,null,"",null,null,null,null,null,null,null,null,null,null,null,null,null,null,null,null,null,null,null,null,"","","",0,""]
[null,null,null,"",null,null,null,null,null,null,null,null,null,null,null,null,null,null,null,null,null,null,null,null,"","","",0,""]
[null,null,null,"",null,null,null,null,null,null,null,null,null,null,null,null,null,null,null,null,null,null,null,null,"","","",0,""]
[null,null,null,"",null,null,null,null,null,null,null,null,null,null,null,null,null,null,null,null,null,null,null,null,"","","",0,""]
[null,null,null,"",null,null,null,null,null,null,null,null,null,null,null,null,null,null,null,null,null,null,null,null,"","","",0,""]
[null,null,null,"",null,null,null,null,null,null,null,null,null,null,null,null,null,null,null,null,null,null,null,null,"","","",0,""]
[null,null,null,"",null,null,null,null,null,null,null,null,null,null,null,null,null,null,null,null,null,null,null,null,"","","",0,""]
[null,null,null,"",null,null,null,null,null,null,null,null,null,null,null,null,null,null,null,null,null,null,null,null,"","","",0,""]
[null,null,null,"",null,null,null,null,null,null,null,null,null,null,null,null,null,null,null,null,null,null,null,null,"","","",0,""]
[null,null,null,"",null,null,null,null,null,null,null,null,null,null,null,null,null,null,null,null,null,null,null,null,"","","",0,""]
[null,null,null,"",null,null,null,null,null,null,null,null,null,null,null,null,null,null,null,null,null,null,null,null,"","","",0,""]
[null,null,null,"",null,null,null,null,null,null,null,null,null,null,null,null,null,null,null,null,null,null,null,null,"","","",0,""]
[null,null,null,"",null,null,null,null,null,null,null,null,null,null,null,null,null,null,null,null,null,null,null,null,"","","",0,""]
[null,null,null,"",null,null,null,null,null,null,null,null,null,null,null,null,null,null,null,null,null,null,null,null,"","","",0,""]
[null,null,null,"",null,null,null,null,null,null,null,null,null,null,null,null,null,null,null,null,null,null,null,null,"","","",0,""]
[null,null,null,"",null,null,null,null,null,null,null,null,null,null,null,null,null,null,null,null,null,null,null,null,"","","",0,""]
[null,null,null,"",null,null,null,null,null,null,null,null,null,null,null,null,null,null,null,null,null,null,null,null,"","","",0,""]
[null,null,null,"",null,null,null,null,null,null,null,null,null,null,null,null,null,null,null,null,null,null,null,null,"","","",0,""]
[null,null,null,"",null,null,null,null,null,null,null,null,null,null,null,null,null,null,null,null,null,null,null,null,"","","",0,""]
[null,null,null,"",null,null,null,null,null,null,null,null,null,null,null,null,null,null,null,null,null,null,null,null,"","","",0,""]
[null,null,null,"",null,null,null,null,null,null,null,null,null,null,null,null,null,null,null,null,null,null,null,null,"","","",0,""]
[null,null,null,"",null,null,null,null,null,null,null,null,null,null,null,null,null,null,null,null,null,null,null,null,"","","",0,""]
[null,null,null,"",null,null,null,null,null,null,null,null,null,null,null,null,null,null,null,null,null,null,null,null,"","","",0,""]
[null,null,null,"",null,null,null,null,null,null,null,null,null,null,null,null,null,null,null,null,null,null,null,null,"","","",0,""]
[null,null,null,"",null,null,null,null,null,null,null,null,null,null,null,null,null,null,null,null,null,null,null,null,"","","",0,""]
[null,null,null,"",null,null,null,null,null,null,null,null,null,null,null,null,null,null,null,null,null,null,null,null,"","","",0,""]
[null,null,null,"",null,null,null,null,null,null,null,null,null,null,null,null,null,null,null,null,null,null,null,null,"","","",0,""]
[null,null,null,"",null,null,null,null,null,null,null,null,null,null,null,null,null,null,null,null,null,null,null,null,"","","",0,""]
[null,null,null,"",null,null,null,null,null,null,null,null,null,null,null,null,null,null,null,null,null,null,null,null,"","","",0,""]
[null,null,null,"",null,null,null,null,null,null,null,null,null,null,null,null,null,null,null,null,null,null,null,null,"","","",0,""]
[null,null,null,"",null,null,null,null,null,null,null,null,null,null,null,null,null,null,null,null,null,null,null,null,"","","",0,""]
[null,null,null,"",null,null,null,null,null,null,null,null,null,null,null,null,null,null,null,null,null,null,null,null,"","","",0,""]
[null,null,null,"",null,null,null,null,null,null,null,null,null,null,null,null,null,null,null,null,null,null,null,null,"","","",0,""]
[null,null,null,"",null,null,null,null,null,null,null,null,null,null,null,null,null,null,null,null,null,null,null,null,"","","",0,""]
[null,null,null,"",null,null,null,null,null,null,null,null,null,null,null,null,null,null,null,null,null,null,null,null,"","","",0,""]
[null,null,null,"",null,null,null,null,null,null,null,null,null,null,null,null,null,null,null,null,null,null,null,null,"","","",0,""]
[null,null,null,"",null,null,null,null,null,null,null,null,null,null,null,null,null,null,null,null,null,null,null,null,"","","",0,""]
[null,null,null,"",null,null,null,null,null,null,null,null,null,null,null,null,null,null,null,null,null,null,null,null,"","","",0,""]
[null,null,null,"",null,null,null,null,null,null,null,null,null,null,null,null,null,null,null,null,null,null,null,null,"","","",0,""]
[null,null,null,"",null,null,null,null,null,null,null,null,null,null,null,null,null,null,null,null,null,null,null,null,"","","",0,""]
[null,null,null,"",null,null,null,null,null,null,null,null,null,null,null,null,null,null,null,null,null,null,null,null,"","","",0,""]
[null,null,null,"",null,null,null,null,null,null,null,null,null,null,null,null,null,null,null,null,null,null,null,null,"","","",0,""]
[null,null,null,"",null,null,null,null,null,null,null,null,null,null,null,null,null,null,null,null,null,null,null,null,"","","",0,""]
[null,null,null,"",null,null,null,null,null,null,null,null,null,null,null,null,null,null,null,null,null,null,null,null,"","","",0,""]
[null,null,null,{"$f":"IF(B204<>\"\",\"J\"&(($F$11)-(YEAR(F204)))&E204,\"\")","v":""},null,null,null,null,null,null,null,null,null,null,null,null,null,null,null,null,null,null,null,null,{"$f":"IF(G204>0,G204,\"\")","v":""},"",{"$f":"IF(W204=\"Ergo\",X204/2,IF(W204=\"Course + Ergo\",X204,\"\"))","v":""},{"$f":"SUM(Y204:AA204)","v":0},""]
[null,null,null,"",null,null,null,null,null,null,null,null,null,null,null,null,null,null,null,null,null,null,null,null,"","","",0,{"$f":"IF(B205<>\"\",B205,\"\")","v":""}]
[null,null,null,"",null,null,null,null,null,null,null,null,null,null,null,null,null,null,null,null,null,null,null,null,"",{"$f":"IF(H206<>\"\",IF(ISERROR(IF(E206=\"F\",VLOOKUP(H206,foulees_f,3,TRUE),VLOOKUP(H206,foulees_m,2,TRUE))),0,IF(E206=\"F\",VLOOKUP(H206,foulees_f,3,TRUE),VLOOKUP(H206,foulees_m,2,TRUE))),\"\")","v":""},"",0,""]
[null,null,null,"",null,null,null,null,null,null,null,null,null,null,null,null,null,null,null,null,null,null,null,null,"","","",0,""]
[null,null,null,"",null,null,null,null,null,null,null,null,null,null,null,null,null,null,null,null,null,null,null,null,"","","",0,""]
[null,null,null,"",null,null,null,null,null,null,null,null,null,null,null,null,null,null,null,null,null,null,null,null,"","","",0,""]
[null,null,null,"",null,null,null,null,null,null,null,null,null,null,null,null,null,null,null,null,null,null,null,null,"","","",0,""]
[null,null,null,"",null,null,null,null,null,null,null,null,null,null,null,null,null,null,null,null,null,null,null,null,"","","",0,""]
[null,null,null,"",null,null,null,null,null,null,null,null,null,null,null,null,null,null,null,null,null,null,null,null,"","","",0,""]
[null,null,null,"",null,null,null,null,null,null,null,null,null,null,null,null,null,null,null,null,null,null,null,null,"","","",0,""]
[null,null,null,"",null,null,null,null,null,null,null,null,null,null,null,null,null,null,null,null,null,null,null,null,"","","",0,""]
[null,null,null,"",null,null,null,null,null,null,null,null,null,null,null,null,null,null,null,null,null,null,null,null,"","","",0,""]
[null,null,null,"",null,null,null,null,null,null,null,null,null,null,null,null,null,null,null,null,null,null,null,null,"","","",0,""]
[null,null,null,"",null,null,null,null,null,null,null,null,null,null,null,null,null,null,null,null,null,null,null,null,"","","",0,""]
[null,null,null,"",null,null,null,null,null,null,null,null,null,null,null,null,null,null,null,null,null,null,null,null,"","","",0,""]
[null,null,null,"",null,null,null,null,null,null,null,null,null,null,null,null,null,null,null,null,null,null,null,null,"","","",0,""]
[null,null,null,"",null,null,null,null,null,null,null,null,null,null,null,null,null,null,null,null,null,null,null,null,"","","",0,""]
[null,null,null,"",null,null,null,null,null,null,null,null,null,null,null,null,null,null,null,null,null,null,null,null,"","","",0,""]
[null,null,null,"",null,null,null,null,null,null,null,null,null,null,null,null,null,null,null,null,null,null,null,null,"","","",0,""]
[null,null,null,"",null,null,null,null,null,null,null,null,null,null,null,null,null,null,null,null,null,null,null,null,"","","",0,""]
[null,null,null,"",null,null,null,null,null,null,null,null,null,null,null,null,null,null,null,null,null,null,null,null,"","","",0,""]
[null,null,null,"",null,null,null,null,null,null,null,null,null,null,null,null,null,null,null,null,null,null,null,null,"","","",0,""]
[null,null,null,"",null,null,null,null,null,null,null,null,null,null,null,null,null,null,null,null,null,null,null,null,"","","",0,""]
[null,null,null,"",null,null,null,null,null,null,null,null,null,null,null,null,null,null,null,null,null,null,null,null,"","","",0,""]
[null,null,null,"",null,null,null,null,null,null,null,null,null,null,null,null,null,null,null,null,null,null,null,null,"","","",0,""]
[null,null,null,"",null,null,null,null,null,null,null,null,null,null,null,null,null,null,null,null,null,null,null,null,"","","",0,""]
[null,null,null,"",null,null,null,null,null,null,null,null,null,null,null,null,null,null,null,null,null,null,null,null,"","","",0,""]
[null,null,null,"",null,null,null,null,null,null,null,null,null,null,null,null,null,null,null,null,null,null,null,null,"","","",0,""]
[null,null,null,"",null,null,null,null,null,null,null,null,null,null,null,null,null,null,null,null,null,null,null,null,"","","",0,""]
[null,null,null,"",null,null,null,null,null,null,null,null,null,null,null,null,null,null,null,null,null,null,null,null,"","","",0,""]
[null,null,null,"",null,null,null,null,null,null,null,null,null,null,null,null,null,null,null,null,null,null,null,null,"","","",0,""]
[null,null,null,"",null,null,null,null,null,null,null,null,null,null,null,null,null,null,null,null,null,null,null,null,"","","",0,""]
[null,null,null,"",null,null,null,null,null,null,null,null,null,null,null,null,null,null,null,null,null,null,null,null,"","","",0,""]
[null,null,null,"",null,null,null,null,null,null,null,null,null,null,null,null,null,null,null,null,null,null,null,null,"","","",0,""]
[null,null,null,"",null,null,null,null,null,null,null,null,null,null,null,null,null,null,null,null,null,null,null,null,"","","",0,""]
[null,null,null,"",null,null,null,null,null,null,null,null,null,null,null,null,null,null,null,null,null,null,null,null,"","","",0,""]
[null,null,null,"",null,null,null,null,null,null,null,null,null,null,null,null,null,null,null,null,null,null,null,null,"","","",0,""]
[null,null,null,"",null,null,null,null,null,null,null,null,null,null,null,null,null,null,null,null,null,null,null,null,"","","",0,""]
[null,null,null,"",null,null,null,null,null,null,null,null,null,null,null,null,null,null,null,null,null,null,null,null,"","","",0,""]
[null,null,null,"",null,null,null,null,null,null,null,null,null,null,null,null,null,null,null,null,null,null,null,null,"","","",0,""]
[null,null,null,"",null,null,null,null,null,null,null,null,null,null,null,null,null,null,null,null,null,null,null,null,"","","",0,""]
[null,null,null,"",null,null,null,null,null,null,null,null,null,null,null,null,null,null,null,null,null,null,null,null,"","","",0,""]
[null,null,null,"",null,null,null,null,null,null,null,null,null,null,null,null,null,null,null,null,null,null,null,null,"","","",0,""]
[null,null,null,"",null,null,null,null,null,null,null,null,null,null,null,null,null,null,null,null,null,null,null,null,"","","",0,""]
[null,null,null,"",null,null,null,null,null,null,null,null,null,null,null,null,null,null,null,null,null,null,null,null,"","","",0,""]
[null,null,null,"",null,null,null,null,null,null,null,null,null,null,null,null,null,null,null,null,null,null,null,null,"","","",0,""]
[null,null,null,"",null,null,null,null,null,null,null,null,null,null,null,null,null,null,null,null,null,null,null,null,"","","",0,""]
[null,null,null,"",null,null,null,null,null,null,null,null,null,null,null,null,null,null,null,null,null,null,null,null,"","","",0,""]
[null,null,null,"",null,null,null,null,null,null,null,null,null,null,null,null,null,null,null,null,null,null,null,null,"","","",0,""]
[null,null,null,"",null,null,null,null,null,null,null,null,null,null,null,null,null,null,null,null,null,null,null,null,"","","",0,""]
[null,null,null,"",null,null,null,null,null,null,null,null,null,null,null,null,null,null,null,null,null,null,null,null,"","","",0,""]
[null,null,null,"",null,null,null,null,null,null,null,null,null,null,null,null,null,null,null,null,null,null,null,null,"","","",0,""]
[null,null,null,"",null,null,null,null,null,null,null,null,null,null,null,null,null,null,null,null,null,null,null,null,"","","",0,""]
[null,null,null,"",null,null,null,null,null,null,null,null,null,null,null,null,null,null,null,null,null,null,null,null,"","","",0,""]
[null,null,null,"",null,null,null,null,null,null,null,null,null,null,null,null,null,null,null,null,null,null,null,null,"","","",0,""]
[null,null,null,"",null,null,null,null,null,null,null,null,null,null,null,null,null,null,null,null,null,null,null,null,"","","",0,""]
[null,null,null,"",null,null,null,null,null,null,null,null,null,null,null,null,null,null,null,null,null,null,null,null,"","","",0,""]
[null,null,null,"",null,null,null,null,null,null,null,null,null,null,null,null,null,null,null,null,null,null,null,null,"","","",0,""]
[null,null,null,"",null,null,null,null,null,null,null,null,null,null,null,null,null,null,null,null,null,null,null,null,"","","",0,""]
[null,null,null,"",null,null,null,null,null,null,null,null,null,null,null,null,null,null,null,null,null,null,null,null,"","","",0,""]
[null,null,null,"",null,null,null,null,null,null,null,null,null,null,null,null,null,null,null,null,null,null,null,null,"","","",0,""]
[null,null,null,"",null,null,null,null,null,null,null,null,null,null,null,null,null,null,null,null,null,null,null,null,"","","",0,""]
[null,null,null,"",null,null,null,null,null,null,null,null,null,null,null,null,null,null,null,null,null,null,null,null,"","","",0,""]
[null,null,null,"",null,null,null,null,null,null,null,null,null,null,null,null,null,null,null,null,null,null,null,null,"","","",0,""]
[null,null,null,{"$f":"IF(B268<>\"\",\"J\"&(($F$11)-(YEAR(F268)))&E268,\"\")","v":""},null,null,null,null,null,null,null,null,null,null,null,null,null,null,null,null,null,null,null,null,{"$f":"IF(G268>0,G268,\"\")","v":""},"",{"$f":"IF(W268=\"Ergo\",X268/2,IF(W268=\"Course + Ergo\",X268,\"\"))","v":""},{"$f":"SUM(Y268:AA268)","v":0},""]
[null,null,null,"",null,null,null,null,null,null,null,null,null,null,null,null,null,null,null,null,null,null,null,null,"","","",0,{"$f":"IF(B269<>\"\",B269,\"\")","v":""}]
[null,null,null,"",null,null,null,null,null,null,null,null,null,null,null,null,null,null,null,null,null,null,null,null,"",{"$f":"IF(H270<>\"\",IF(ISERROR(IF(E270=\"F\",VLOOKUP(H270,foulees_f,3,TRUE),VLOOKUP(H270,foulees_m,2,TRUE))),0,IF(E270=\"F\",VLOOKUP(H270,foulees_f,3,TRUE),VLOOKUP(H270,foulees_m,2,TRUE))),\"\")","v":""},"",0,""]
[null,null,null,"",null,null,null,null,null,null,null,null,null,null,null,null,null,null,null,null,null,null,null,null,"","","",0,""]
[null,null,null,"",null,null,null,null,null,null,null,null,null,null,null,null,null,null,null,null,null,null,null,null,"","","",0,""]
[null,null,null,"",null,null,null,null,null,null,null,null,null,null,null,null,null,null,null,null,null,null,null,null,"","","",0,""]
[null,null,null,"",null,null,null,null,null,null,null,null,null,null,null,null,null,null,null,null,null,null,null,null,"","","",0,""]
[null,null,null,"",null,null,null,null,null,null,null,null,null,null,null,null,null,null,null,null,null,null,null,null,"","","",0,""]
[null,null,null,"",null,null,null,null,null,null,null,null,null,null,null,null,null,null,null,null,null,null,null,null,"","","",0,""]
[null,null,null,"",null,null,null,null,null,null,null,null,null,null,null,null,null,null,null,null,null,null,null,null,"","","",0,""]
[null,null,null,"",null,null,null,null,null,null,null,null,null,null,null,null,null,null,null,null,null,null,null,null,"","","",0,""]
[null,null,null,"",null,null,null,null,null,null,null,null,null,null,null,null,null,null,null,null,null,null,null,null,"","","",0,""]
[null,null,null,"",null,null,null,null,null,null,null,null,null,null,null,null,null,null,null,null,null,null,null,null,"","","",0,""]
[null,null,null,"",null,null,null,null,null,null,null,null,null,null,null,null,null,null,null,null,null,null,null,null,"","","",0,""]
[null,null,null,"",null,null,null,null,null,null,null,null,null,null,null,null,null,null,null,null,null,null,null,null,"","","",0,""]
[null,null,null,"",null,null,null,null,null,null,null,null,null,null,null,null,null,null,null,null,null,null,null,null,"","","",0,""]
[null,null,null,"",null,null,null,null,null,null,null,null,null,null,null,null,null,null,null,null,null,null,null,null,"","","",0,""]
[null,null,null,"",null,null,null,null,null,null,null,null,null,null,null,null,null,null,null,null,null,null,null,null,"","","",0,""]
[null,null,null,"",null,null,null,null,null,null,null,null,null,null,null,null,null,null,null,null,null,null,null,null,"","","",0,""]

{"sheet":"Points","index":1,"n_rows":175,"n_cols":6,"rows_kept":175,"cut":false,"hidden":true,"merged":[[151,1,151,2],[152,1,152,2],[77,1,77,2],[76,1,76,2],[52,1,52,2],[101,1,101,2],[127,1,127,2],[126,1,126,2],[102,1,102,2],[1,1,1,2],[27,1,27,2],[26,1,26,2],[2,1,2,2],[51,1,51,2]]}
[null,null,null,null,null,"Liste H & F"]
[null,"TEST N°1 : SAUT EN LONGUEUR SANS ÉLAN",null,null,null,"F"]
[null,"BARÈME DE PERFORMANCE (m)",null,null,null,"H"]
[null,"Filles","Garçons","Points"]
[null,1.1499999999999999,1.4,1]
[null,1.2,1.45,2]
[null,1.25,1.5,3]
[null,1.3,1.55,4]
[null,1.35,1.6,5]
[null,1.4,1.65,6]
[null,1.45,1.7,7]
[null,1.5,1.75,8]
[null,1.55,1.8,9]
[null,1.6,1.85,10]
[null,1.65,1.9,11]
[null,1.7,1.95,12]
[null,1.75,2,13]
[null,1.8,2.0499999999999998,14]
[null,1.85,2.1,15]
[null,1.9,2.15,16]
[null,1.95,2.25,17]
[null,2,2.2999999999999998,18]
[null,2.0499999999999998,2.35,19]
[null,2.1,2.4,20]
[null,3,3,20]
[]
[null,"TEST N°2 : 5 FOULÉES BONDISSANTES"]
[null,"BARÈME DE PERFORMANCE (m)"]
[null,"Filles","Garçons","Points"]
[null,6.7,8.0500000000000007,1]
[null,6.85,8.1999999999999993,2]
[null,7,8.35,3]
[null,7.1,8.5,4]
[null,7.25,8.65,5]
[null,7.4,8.9,6]
[null,7.55,9.0500000000000007,7]
[null,7.7,9.1999999999999993,8]
[null,7.85,9.35,9]
[null,8,9.5,10]
[null,8.15,9.65,11]
[null,8.3000000000000007,9.8000000000000007,12]
[null,8.4499999999999993,9.9499999999999993,13]
[null,8.6,10.1,14]
[null,8.75,10.25,15]
[null,8.9,10.4,16]
[null,9.0500000000000007,10.55,17]
[null,9.1999999999999993,10.7,18]
[null,9.35,10.85,19]
[null,9.5,11,20]
[null,15,15,20]
[]
[null,"TEST N°3 : SAUT EN HAUTEUR SANS ÉLAN"]
[null,"BARÈME DE PERFORMANCE (cm)"]
[null,"Filles","Garçons","Points"]
[null,"-","-",1]
[null,"-","-",2]
[null,"-",16,3]
[null,8,18,4]
[null,10,20,5]
[null,12,22,6]
[null,14,24,7]
[null,16,26,8]
[null,18,28,9]
[null,20,30,10]
[null,22,32,11]
[null,24,34,12]
[null,26,36,13]
[null,28,38,14]
[null,30,40,15]
[null,32,42,16]
[null,34,44,17]
[null,36,46,18]
[null,38,48,19]
[null,40,50,20]
[null,100,100,20]
[]
[null,"TEST N°4 : POMPES"]
[null,"BARÈME DE PERFORMANCE (rép.)"]
[null,"Filles","Garçons","Points"]
[null,1,1,1]
[null,2,4,2]
[null,3,7,3]
[null,4,10,4]
[null,5,13,5]
[null,6,16,6]
[null,7,17,7]
[null,8,18,8]
[null,9,19,9]
[null,10,20,10]
[null,11,21,11]
[null,12,22,12]
[null,13,23,13]
[null,14,24,14]
[null,15,25,15]
[null,16,26,16]
[null,17,27,17]
[null,18,28,18]
[null,19,29,19]
[null,20,30,20]
[null,50,50,20]
[]
[null,"TEST N°5 : ABDOMINAUX"]
[null,"BARÈME DE PERFORMANCE (rép.)"]
[null,"Filles","Garçons","Points"]
[null,4,4,1]
[null,8,8,2]
[null,12,12,3]
[null,16,16,4]
[null,20,20,5]
[null,21,21,6]
[null,22,22,7]
[null,23,23,8]
[null,24,24,9]
[null,25,25,10]
[null,26,26,11]
[null,27,27,12]
[null,28,28,13]
[null,29,29,14]
[null,30,30,15]
[null,31,31,16]
[null,32,32,17]
[null,33,33,18]
[null,34,34,19]
[null,35,35,20]
[null,100,100,20]
[]
[null,"TEST N°6 : ERGO - 5 COUPS MAX"]
[null,"BARÈME DE PERFORMANCE (W)"]
[null,"Filles","Garçons","Points"]
[null,210,240,1]
[null,220,250,2]
[null,230,260,3]
[null,240,270,4]
[null,250,280,5]
[null,260,290,6]
[null,270,300,7]
[null,280,310,8]
[null,290,320,9]
[null,300,330,10]
[null,310,340,11]
[null,320,350,12]
[null,330,360,13]
[null,340,370,14]
[null,350,380,15]
[null,360,390,16]
[null,370,400,17]
[null,380,410,18]
[null,390,420,19]
[null,400,430,20]
[null,100,100,20]
[]
[null,"TEST N°6 : TEST NAVETTE"]
[null,"BARÈME DE PERFORMANCE (palier)"]
[null,"Filles","Garçons","Points"]
[null,"-","-",1]
[null,"-","-",2]
[null,"-","-",3]
[null,"-","-",4]
[null,"-","-",5]
[null,7,8,6]
[null,7.5,8.5,7]
[null,8,9,8]
[null,8.5,9.5,9]
[null,9,10,10]
[null,9.5,10.5,11]
[null,10,11,12]
[null,10.5,11.5,13]
[null,11,12,14]
[null,11.5,12.5,15]
[null,12,13,16]
[null,12.5,13.5,17]
[null,13,14,18]
[null,13.5,14.5,19]
[null,14,15,20]
[null,20,20,20]